bitfinex-derivatives/quotes_ETHF0:USTF0_20220106
["timestamp","ask_amount","ask_price","bid_price","bid_amount"]
[1641489669789,2.76498232,3411.5,3410.5,2.00479]
[1641489669988,2.76498232,3411.5,3410.5,0.79775743]
[1641489670486,0.27752881,3411.4,3410.5,0.79775743]
[1641489670888,1.4999,3410.6,3405.9,1.466]
[1641489671090,22.5342,3410.5,3408.4,1.5]
[1641489671291,1.4999,3410.4,3408.8,1.46645843]
[1641489671489,1.4999,3409.9,3408.2,22.0015]
[1641489671691,2.2908,3409.9,3408.2,0.7321013]
[1641489671889,1.4999,3409.7,3408.3,12.64]
[1641489672490,0.7909,3409.9,3408.3,12.64]
[1641489672491,2.2908,3409.9,3408.3,14.1066563]
[1641489672689,2.00479,3409.6,3408.9,12.64]
[1641489672893,2.786444,3409.6,3409.0,0.397181]
[1641489673394,1.4999,3409.5,3408.8,2.00479]
[1641489673591,2.786444,3409.6,3408.8,2.00479]
[1641489673592,0.397182,3409.4,3408.8,2.00479]
[1641489675196,2.389262,3409.6,3408.9,12.64]
[1641489675396,2.00479,3410.0,3408.9,13.3197]
[1641489676395,2.00479,3410.0,3409.3,1.5]
[1641489676597,0.384472,3409.9,3408.9,0.6797]
[1641489676797,0.384472,3409.9,3409.3,2.00479]
[1641489676998,0.65243792,3409.9,3409.3,2.00479]
[1641489677199,0.397182,3409.8,3408.8,2.00479]
[1641489677397,1.4999,3409.7,3408.0,0.7321013]
[1641489677597,0.65243792,3409.9,3408.5,1.46659177]
[1641489678098,1.4999,3409.1,3408.4,12.64]
[1641489678398,0.397182,3409.0,3408.4,12.64]
[1641489678597,0.384472,3408.9,3408.4,12.64]
[1641489678798,2.00479,3408.7,3408.4,12.64]
[1641489678999,0.459982,3408.6,3408.0,12.64]
[1641489679198,2.00479,3408.7,3408.0,13.037181]
[1641489679598,0.98755351,3409.9,3408.7,12.64]
[1641489679803,0.98755351,3409.9,3408.7,0.8766]
[1641489679999,0.98755351,3409.2,3408.7,0.8766]
[1641489680204,0.397182,3409.1,3408.7,0.8766]
[1641489680497,0.397182,3409.1,3408.7,13.5166]
[1641489680700,0.397182,3409.1,3408.9,2.00479]
[1641489680900,0.397182,3409.1,3408.9,2.158008]
[1641489681101,0.98755351,3409.2,3409.0,0.397181]
[1641489681401,0.98755351,3409.4,3409.1,12.64]
[1641489682099,0.98755351,3409.4,3408.9,2.00479]
[1641489682100,0.459982,3409.3,3408.9,2.00479]
[1641489682301,0.459982,3409.3,3408.6,2.00479]
[1641489682799,2.861954,3409.3,3408.6,2.00479]
[1641489682999,3.246426,3409.3,3408.7,12.64]
[1641489683201,3.246426,3409.3,3408.7,13.037181]
[1641489683803,2.849244,3409.3,3408.7,13.789381]
[1641489684002,2.00479,3409.3,3408.7,13.789381]
[1641489685302,2.389262,3409.3,3408.7,13.789381]
[1641489687004,2.786444,3409.3,3408.6,3.47132155]
[1641489687303,3.412244,3409.3,3408.2,2.00479]
[1641489687505,1.4999,3409.1,3408.2,2.00479]
[1641489687701,3.015062,3409.3,3408.2,2.00479]
[1641489688202,1.4999,3409.1,3408.3,12.64]
[1641489688401,0.397182,3409.0,3408.3,12.64]
[1641489688805,2.00479,3408.9,3408.3,12.64]
[1641489689002,0.397182,3408.8,3408.3,12.64]
[1641489689203,0.397182,3408.8,3408.2,2.00479]
[1641489691810,1.23252014,3408.5,3408.2,2.7368913]
[1641489692009,0.857164,3408.4,3408.2,0.7321013]
[1641489692209,0.397182,3408.4,3408.3,0.153218]
[1641489692411,0.397182,3408.4,3408.2,0.7321013]
[1641489692818,0.74385628,3408.3,3408.2,0.7321013]
[1641489693011,0.28387428,3408.3,3408.2,0.8853193]
[1641489693212,0.28387428,3408.3,3408.2,0.7321013]
[1641489694115,0.28387428,3408.3,3408.2,1.1984301]
[1641489695014,0.74385628,3408.3,3408.2,0.7321013]
[1641489696717,2.24375628,3408.3,3408.2,0.7321013]
[1641489696917,2.24375628,3408.3,3407.5,2.00479]
[1641489696918,4.83864628,3408.3,3407.5,2.00479]
[1641489697119,1.4999,3407.8,3407.5,2.00479]
[1641489697318,0.844454,3407.7,3407.5,2.00479]
[1641489697519,0.397182,3407.6,3407.5,2.00479]
[1641489697719,0.7445,3407.6,3407.5,2.00479]
[1641489697922,0.7445,3407.6,3406.9,2.00479]
[1641489698118,1.141682,3407.6,3407.0,0.397181]
[1641489698817,2.00479,3407.3,3407.0,0.397181]
[1641489699019,2.00479,3407.3,3407.1,0.153218]
[1641489699219,2.00479,3407.3,3406.5,3.47221679]
[1641489699418,0.384472,3407.2,3406.9,12.64]
[1641489699820,0.384472,3407.2,3407.0,0.153218]
[1641489700226,0.384472,3407.2,3406.9,12.64]
[1641489700622,0.384472,3407.2,3406.7,0.397181]
[1641489701022,0.384472,3407.2,3406.7,13.037181]
[1641489701226,0.397182,3407.1,3406.7,13.037181]
[1641489701425,0.397182,3407.1,3406.5,3.47221679]
[1641489701624,0.397182,3407.1,3406.5,2.00479]
[1641489701824,0.397182,3407.1,3406.6,12.64]
[1641489702025,0.397182,3407.1,3406.6,13.037181]
[1641489702626,0.384472,3407.2,3406.6,13.037181]
[1641489703227,0.781654,3407.2,3406.6,13.037181]
[1641489703628,0.781654,3407.2,3406.7,14.10735789]
[1641489703827,0.781654,3407.2,3406.7,12.64]
[1641489704227,0.781654,3407.2,3406.6,0.397181]
[1641489704627,0.781654,3407.2,3406.5,16.11221679]
[1641489704628,0.781654,3407.2,3406.5,3.47221679]
[1641489705427,0.781654,3407.2,3406.5,16.11221679]
[1641489705630,0.781654,3407.2,3406.5,3.47221679]
[1641489706029,0.781654,3407.2,3406.5,4.97221679]
[1641489706228,0.781654,3407.2,3406.5,5.36939779]
[1641489706427,0.781654,3407.2,3406.6,12.64]
[1641489707028,0.781654,3407.2,3406.7,0.397181]
[1641489707934,0.781654,3407.2,3406.7,1.86453458]
[1641489708133,0.781654,3407.2,3406.7,0.397181]
[1641489709237,0.781654,3407.2,3406.7,1.86453458]
[1641489709836,0.781654,3407.2,3406.7,0.397181]
[1641489712537,0.781654,3407.2,3406.5,2.00479]
[1641489713838,0.781654,3407.2,3406.0,24.3657]
[1641489714038,5.456854,3407.2,3406.1,1.46762924]
[1641489714238,1.4999,3406.9,3406.1,1.46762924]
[1641489714438,0.397182,3406.8,3406.1,1.46762924]
[1641489714637,0.397182,3406.8,3406.1,1.46562924]
[1641489714837,0.397182,3406.8,3405.8,2.00479]
[1641489714838,2.00479,3406.3,3405.8,2.00479]
[1641489715038,0.384472,3406.2,3405.8,2.00479]
[1641489715642,0.397182,3406.1,3405.8,14.64479]
[1641489715840,2.00479,3406.3,3406.0,12.64]
[1641489716041,2.00479,3406.3,3406.0,14.10767232]
[1641489716443,2.00479,3406.3,3406.0,1.46767232]
[1641489716843,2.00479,3406.3,3406.1,0.153218]
[1641489717844,2.00479,3406.3,3406.2,13.037181]
[1641489718146,23.86760293,3407.9,3406.2,15.47273536]
[1641489718344,23.86760293,3407.9,3406.7,12.64]
[1641489718544,24.5929,3408.1,3407.4,1.5]
[1641489718749,22.97090293,3408.2,3407.4,0.846]
[1641489718750,0.397182,3408.0,3407.4,0.846]
[1641489718947,2.401972,3408.0,3407.4,0.846]
[1641489719148,0.384472,3407.9,3407.4,0.846]
[1641489719747,0.397182,3407.8,3407.4,0.846]
[1641489720047,0.397182,3407.8,3407.2,2.00479]
[1641489720949,0.397182,3407.8,3406.8,2.00479]
[1641489721148,0.397182,3407.8,3406.8,14.64479]
[1641489722950,2.00479,3407.6,3406.8,14.64479]
[1641489723151,2.00479,3407.6,3406.9,13.037181]
[1641489724154,0.397182,3407.8,3406.9,13.037181]
[1641489725758,0.397182,3407.8,3406.9,0.397181]
[1641489727161,0.397182,3407.8,3406.9,13.037181]
[1641489727759,0.397182,3407.8,3406.9,0.397181]
[1641489728163,0.397182,3407.8,3406.8,16.1120876]
[1641489730167,0.397182,3407.8,3406.8,3.4720876]
[1641489731566,0.98830293,3408.6,3407.6,1.5]
[1641489731767,0.29819321,3407.7,3407.6,3.64264245]
[1641489731968,1.47896165,3407.9,3407.6,4.19304145]
[1641489732166,1.47896165,3407.9,3407.8,1.5]
[1641489732369,1.47896165,3407.9,3407.8,14.537181]
[1641489732667,1.47896165,3407.9,3407.8,16.27993168]
[1641489732868,2.46501042,3408.4,3407.8,16.43314968]
[1641489733069,2.46501042,3408.4,3408.0,12.64]
[1641489733270,2.46501042,3408.4,3408.3,12.64]
[1641489733470,2.46501042,3408.4,3408.3,13.631781]
[1641489733672,3.49705818,3408.6,3408.3,13.631781]
[1641489733673,3.49705818,3408.6,3408.3,13.784999]
[1641489734471,3.49705818,3408.6,3408.4,1.5]
[1641489734670,2.00479,3408.6,3408.5,14.65691765]
[1641489735070,2.00479,3408.6,3408.5,13.190399]
[1641489735270,2.00479,3409.0,3408.5,13.190399]
[1641489735471,0.62191748,3409.2,3408.9,14.14]
[1641489735673,2.46501042,3409.6,3409.1,15.60617462]
[1641489735871,2.46501042,3409.6,3409.5,12.64]
[1641489736273,2.46501042,3409.6,3409.5,13.037181]
[1641489736475,2.46501042,3409.8,3409.5,13.190399]
[1641489736676,2.46501042,3409.8,3409.7,14.14]
[1641489736871,2.46501042,3409.8,3409.7,16.00308481]
[1641489737071,2.46501042,3409.8,3409.7,20.01266481]
[1641489737273,2.46501042,3409.8,3409.7,18.546761]
[1641489737476,1.042e-05,3409.8,3409.7,21.47224289]
[1641489737771,3.08131905,3410.1,3409.7,21.47224289]
[1641489737972,3.08131905,3410.1,3410.0,14.14]
[1641489738171,3.08131905,3410.1,3410.0,15.170181]
[1641489738375,3.41101693,3410.3,3410.0,15.323399]
[1641489738573,3.10760342,3411.1,3410.2,15.60557511]
[1641489738774,2.48608274,3410.8,3410.2,14.10557511]
[1641489738973,3.10760342,3411.1,3410.7,16.14479]
[1641489739174,3.10760342,3411.1,3411.0,14.14]
[1641489739374,3.10760342,3411.1,3411.0,14.690399]
[1641489739577,3.10760342,3411.1,3411.0,14.28426231]
[1641489739974,3.22367592,3411.6,3411.0,14.28426231]
[1641489740475,2.00479,3411.6,3411.0,14.28426231]
[1641489740874,2.389262,3411.6,3411.0,14.28426231]
[1641489741081,2.786444,3411.6,3411.0,0.550399]
[1641489742074,2.786444,3411.6,3411.1,0.72795122]
[1641489742276,1.49128725,3411.5,3411.2,12.64]
[1641489742476,1.49128725,3411.5,3411.3,0.153218]
[1641489742675,0.68798725,3411.5,3411.3,0.153218]
[1641489743475,0.459982,3411.5,3411.3,0.153218]
[1641489743778,1.86410906,3411.5,3411.3,0.153218]
[1641489743975,1.86410906,3411.5,3411.2,0.397181]
[1641489744177,1.86410906,3411.5,3410.8,0.72795122]
[1641489744376,0.397182,3411.4,3410.8,0.72795122]
[1641489744576,0.397182,3411.4,3410.8,13.36795122]
[1641489744977,0.397182,3411.4,3410.8,0.72795122]
[1641489745478,1.897082,3411.4,3410.8,0.72795122]
[1641489745677,0.397182,3411.4,3410.8,0.72795122]
[1641489745878,0.397182,3411.4,3410.1,1.0]
[1641489745879,1.3032,3410.9,3410.1,1.0]
[1641489746077,1.3032,3410.7,3410.4,0.72986664]
[1641489746282,0.459982,3410.6,3410.4,0.72986664]
[1641489746679,0.397182,3410.5,3410.4,0.72986664]
[1641489747082,2.401972,3410.5,3410.4,0.72986664]
[1641489747482,2.401972,3410.5,3410.1,1.0]
[1641489747681,2.401972,3410.5,3410.1,13.64]
[1641489747881,2.401972,3410.5,3410.4,0.1968]
[1641489748082,2.861954,3410.5,3410.1,1.0]
[1641489749085,4.72670693,3410.5,3410.1,1.0]
[1641489750185,1.86475293,3410.4,3410.1,1.0]
[1641489750585,0.459982,3410.3,3410.1,1.0]
[1641489751290,2.34895496,3410.3,3410.1,1.0]
[1641489752695,0.15608892,3410.2,3410.1,13.793218]
[1641489753091,0.15608892,3410.2,3410.1,13.990018]
[1641489753794,1.64787988,3410.4,3410.1,13.990018]
[1641489753998,0.459982,3410.3,3410.1,13.990018]
[1641489754196,1.64787988,3410.4,3410.1,13.990018]
[1641489754396,1.64787988,3410.4,3410.2,14.10585224]
[1641489754597,1.64787988,3410.4,3410.3,12.793218]
[1641489754795,1.64787988,3410.4,3410.3,12.64]
[1641489754996,1.64787988,3410.4,3410.3,14.64479]
[1641489755196,2.10786188,3410.4,3410.3,2.00479]
[1641489755396,2.50504388,3410.4,3410.1,1.0]
[1641489755596,3.18134388,3410.4,3410.1,1.0]
[1641489755998,1.24306615,3410.3,3410.1,1.0]
[1641489756299,0.857164,3410.2,3410.1,1.0]
[1641489757801,0.15608892,3410.2,3410.1,13.990018]
[1641489758400,0.15608892,3410.2,3410.1,12.990018]
[1641489758799,1.49179096,3410.4,3410.3,12.64]
[1641489759003,1.49179096,3410.4,3410.3,13.527118]
[1641489759200,1.49179096,3410.4,3410.3,15.531908]
[1641489759600,1.95177296,3410.4,3410.3,0.5371]
[1641489759799,1.95177296,3410.4,3410.2,3.84391108]
[1641489760001,1.3032,3410.3,3408.8,2.62968881]
[1641489760201,1.3032,3409.9,3408.8,2.43288881]
[1641489760601,1.3032,3409.5,3408.8,2.43288881]
[1641489760803,0.397182,3409.4,3409.1,1.81987806]
[1641489760999,0.459982,3409.3,3409.1,1.81987806]
[1641489761405,0.857164,3409.3,3409.1,1.81987806]
[1641489761602,0.397182,3409.3,3409.1,1.97309606]
[1641489762403,0.397182,3409.3,3409.1,0.153218]
[1641489762603,2.34895496,3409.3,3409.1,0.153218]
[1641489762803,1.88897296,3409.3,3409.1,0.153218]
[1641489763202,1.88897296,3409.3,3409.2,2.00479]
[1641489763801,2.34895496,3409.3,3409.2,2.00479]
[1641489764003,0.857164,3409.3,3409.2,2.00479]
[1641489764205,0.397182,3409.3,3409.2,2.00479]
[1641489764604,1.49179096,3409.6,3409.2,16.30786781]
[1641489764803,1.49179096,3409.6,3409.5,0.1968]
[1641489765005,1.49179096,3409.6,3409.5,12.990018]
[1641489765403,1.86475293,3409.9,3409.5,12.990018]
[1641489765404,1.49179096,3409.7,3409.5,12.990018]
[1641489766207,1.49179096,3409.7,3409.6,14.50312779]
[1641489766406,1.49179096,3409.7,3409.6,15.19502779]
[1641489766610,1.49179096,3409.7,3409.6,2.15784679]
[1641489766810,1.49179096,3409.7,3409.6,14.79784679]
[1641489767008,0.9944678,3409.7,3409.6,14.79784679]
[1641489767507,0.9944678,3409.7,3409.6,13.3319]
[1641489767708,0.9944678,3409.7,3409.6,14.79800798]
[1641489769008,1.49179096,3410.2,3409.6,14.79800798]
[1641489769209,1.88897296,3410.1,3409.8,12.64]
[1641489769411,0.459982,3410.0,3409.8,12.64]
[1641489770411,0.459982,3410.0,3409.8,13.52530205]
[1641489770612,0.397182,3410.1,3409.8,13.52530205]
[1641489771115,1.49179096,3410.2,3410.0,12.64]
[1641489771315,1.49179096,3410.2,3410.1,0.153218]
[1641489771514,1.95177296,3410.2,3410.0,12.64]
[1641489771917,1.49179096,3410.2,3410.0,12.64]
[1641489772114,1.49179096,3410.2,3410.0,12.793218]
[1641489772414,2.00479,3410.3,3410.0,12.793218]
[1641489772415,1.49179096,3410.3,3410.1,0.593981]
[1641489772615,1.86475293,3410.6,3410.2,15.6056954]
[1641489772815,1.86475293,3410.6,3409.9,2.19777945]
[1641489772816,1.86475293,3410.6,3410.5,14.14]
[1641489773016,1.86475293,3410.6,3410.5,14.184599]
[1641489773315,1.86475293,3410.6,3410.5,18.194179]
[1641489773516,1.86475293,3410.6,3410.5,19.65972833]
[1641489773717,0.51895904,3410.9,3410.5,19.65972833]
[1641489773718,2.38371197,3410.9,3410.5,19.65972833]
[1641489773916,2.38371197,3410.9,3410.8,0.1968]
[1641489774117,2.38371197,3410.9,3410.8,12.8368]
[1641489774317,2.84369397,3410.9,3410.8,12.8368]
[1641489774518,2.38371197,3410.9,3410.8,12.990018]
[1641489774717,2.38371197,3410.9,3410.8,0.1968]
[1641489774917,2.38371197,3410.9,3410.7,1.46561162]
[1641489775318,0.857164,3410.8,3410.7,1.46561162]
[1641489775517,0.397182,3410.8,3410.5,4.74135843]
[1641489775717,0.397182,3410.8,3410.5,2.73656843]
[1641489775919,1.700382,3410.8,3410.5,2.73656843]
[1641489776117,2.524982,3410.8,3410.5,2.73656843]
[1641489776318,0.459982,3410.7,3410.5,2.00479]
[1641489776518,0.397182,3410.6,3410.2,1.73177843]
[1641489777317,2.00479,3410.5,3410.2,1.73177843]
[1641489777518,0.844454,3410.4,3410.2,1.73177843]
[1641489777718,3.10638893,3410.4,3410.2,1.0]
[1641489779119,2.64640693,3410.4,3410.3,0.153218]
[1641489779321,3.10638893,3410.4,3410.2,1.0]
[1641489779519,1.86475293,3410.4,3410.3,12.8368]
[1641489779722,0.86475293,3410.4,3410.3,13.4801]
[1641489780119,0.86475293,3410.4,3410.3,13.833699]
[1641489780323,0.86475293,3410.4,3410.3,15.49626744]
[1641489780719,0.86475293,3410.4,3410.3,2.85626744]
[1641489780920,0.844454,3410.4,3410.3,1.66256844]
[1641489781121,2.00479,3410.5,3410.3,1.66256844]
[1641489781324,2.00479,3410.5,3410.3,1.81578644]
[1641489781521,2.00479,3410.5,3410.3,14.45578644]
[1641489781822,3.49636637,3410.5,3410.3,14.45578644]
[1641489782041,3.49636637,3410.5,3410.3,14.85296744]
[1641489782622,1.49157637,3410.5,3410.3,14.85296744]
[1641489782823,1.24295178,3410.4,3410.3,14.85296744]
[1641489783223,1.24295178,3410.4,3410.3,16.85775744]
[1641489783423,1.24295178,3410.4,3410.3,16.85757485]
[1641489783823,1.24295178,3410.5,3410.3,17.32367016]
[1641489784625,1.24295178,3410.5,3410.4,0.540018]
[1641489785228,0.397182,3410.5,3410.4,1.00611331]
[1641489786225,0.397182,3410.5,3410.4,0.540018]
[1641489786630,0.397182,3410.5,3410.4,1.0]
[1641489786830,0.397182,3410.5,3410.4,0.540018]
[1641489787730,1.86458034,3410.6,3410.4,0.540018]
[1641489787930,1.86458034,3410.6,3410.5,0.1968]
[1641489788330,1.86458034,3410.6,3410.4,12.8368]
[1641489788531,2.24905234,3410.7,3410.5,13.099982]
[1641489788732,2.24905234,3410.7,3410.5,14.180018]
[1641489789430,2.24905234,3410.7,3410.6,0.1968]
[1641489789631,2.24905234,3410.7,3410.5,15.180018]
[1641489789831,0.384472,3410.7,3410.5,2.540018]
[1641489790032,0.384472,3410.7,3410.5,15.180018]
[1641489790232,0.384472,3410.7,3410.5,2.540018]
[1641489790638,0.397182,3410.6,3410.5,2.540018]
[1641489790839,1.49156146,3410.6,3410.5,3.1968]
[1641489791039,1.49156146,3410.6,3410.5,18.8023794]
[1641489791241,1.49156146,3410.6,3410.5,17.3023794]
[1641489791440,1.49156146,3410.6,3410.5,17.6995604]
[1641489791841,2.73440813,3410.6,3410.5,18.89710553]
[1641489792044,1.24284667,3410.6,3410.5,18.89710553]
[1641489793143,1.24284667,3410.6,3410.5,17.6995604]
[1641489793542,1.24284667,3410.6,3410.5,16.233981]
[1641489794643,0.24284667,3410.6,3410.5,16.233981]
[1641489795345,0.12911043,3410.6,3410.5,17.431532]
[1641489796345,0.12911043,3410.6,3410.5,16.96545863]
[1641489796546,1.87603346,3410.9,3410.5,16.233981]
[1641489796547,0.12911043,3410.8,3410.5,16.233981]
[1641489796746,0.12911043,3410.8,3410.5,16.037181]
[1641489797145,0.12911043,3410.8,3410.7,0.1968]
[1641489797545,0.12911043,3410.8,3410.7,0.459982]
[1641489797746,0.12911043,3410.8,3410.5,15.773999]
[1641489798146,0.12911043,3410.8,3410.5,15.180018]
[1641489798547,0.12911043,3410.8,3410.6,0.459982]
[1641489798748,0.397182,3410.7,3410.5,15.180018]
[1641489799949,0.397182,3410.7,3410.6,0.459982]
[1641489800148,0.397182,3410.7,3410.5,15.180018]
[1641489800949,0.397182,3410.7,3410.5,15.64]
[1641489801149,0.12859633,3410.6,3410.5,15.64]
[1641489801350,0.12859633,3410.6,3410.5,15.180018]
[1641489801949,0.12859633,3410.6,3410.5,15.64]
[1641489802350,0.397182,3410.7,3410.5,15.180018]
[1641489802750,1.700382,3410.7,3410.6,0.459982]
[1641489803152,1.700382,3410.7,3410.5,15.180018]
[1641489803351,0.12224196,3410.6,3410.5,15.180018]
[1641489803553,0.12224196,3410.6,3410.5,15.64]
[1641489803952,0.12224196,3410.6,3410.5,15.180018]
[1641489804454,1.11319811,3410.6,3410.5,15.64]
[1641489804655,1.11319811,3410.6,3410.5,15.180018]
[1641489805254,0.12224196,3410.6,3410.5,15.180018]
[1641489805854,0.12224196,3410.6,3410.5,15.376818]
[1641489806054,0.12224196,3410.6,3410.5,15.180018]
[1641489807356,0.12224196,3410.6,3410.5,15.64]
[1641489807657,0.12224196,3410.6,3410.5,15.180018]
[1641489808858,1.11413723,3410.6,3410.5,15.180018]
[1641489809658,0.99189527,3410.6,3410.5,15.376818]
[1641489810158,0.99189527,3410.6,3410.5,15.180018]
[1641489810359,0.99189527,3410.6,3410.5,15.64]
[1641489811059,0.99189527,3410.6,3410.5,15.180018]
[1641489812061,0.99189527,3410.6,3410.5,16.037181]
[1641489812462,1.11413723,3410.7,3410.5,16.037181]
[1641489812661,1.11413723,3410.7,3410.5,17.50290003]
[1641489812862,1.11413723,3410.7,3410.5,16.037181]
[1641489813062,1.11413723,3410.7,3410.6,14.30241162]
[1641489813263,1.11413723,3410.7,3410.6,12.8368]
[1641489813464,0.99189527,3411.0,3410.6,14.30247177]
[1641489813662,0.99189527,3411.0,3410.6,14.50285277]
[1641489813861,0.99189527,3411.0,3410.9,0.1968]
[1641489814062,0.99189527,3411.0,3410.9,0.8415]
[1641489814264,0.99189527,3411.0,3410.9,13.4815]
[1641489814664,1.11413723,3411.0,3410.9,13.941482]
[1641489815566,3.64182277,3411.3,3410.9,15.441482]
[1641489815567,1.23985077,3411.3,3410.9,15.441482]
[1641489815763,3.41783139,3412.6,3410.9,15.441482]
[1641489815764,1.86458034,3411.9,3411.3,12.64]
[1641489815969,2.48600665,3412.2,3411.8,14.30176106]
[1641489816163,2.48600665,3412.2,3412.1,12.8368]
[1641489816365,2.48600665,3412.2,3412.1,13.296782]
[1641489816564,2.48600665,3412.2,3412.1,14.796782]
[1641489816765,3.41783139,3412.7,3412.3,12.64]
[1641489816966,3.41783139,3412.7,3412.1,2.156782]
[1641489816967,7.49760172,3415.2,3412.6,14.3368]
[1641489817266,2.15910937,3413.2,3413.1,12.8368]
[1641489817565,2.15910937,3413.2,3413.1,17.306362]
[1641489817766,3.09858872,3413.3,3413.1,17.306362]
[1641489817966,3.09858872,3413.3,3413.2,14.14]
[1641489818570,3.09858872,3413.3,3413.2,16.36172272]
[1641489819168,2.15910937,3414.0,3413.3,0.397181]
[1641489819367,4.20704939,3414.6,3413.9,19.81021093]
[1641489819566,4.20704939,3414.6,3414.5,14.3368]
[1641489819767,2.00479,3415.5,3414.5,15.440281]
[1641489819967,2.00479,3415.5,3415.1,12.64]
[1641489820368,1.3032,3415.3,3415.1,12.64]
[1641489820768,1.3032,3415.3,3413.9,4.00958]
[1641489820769,10.39718199,3415.2,3413.9,4.00958]
[1641489820968,1.3032,3415.0,3413.9,2.00479]
[1641489821171,1.3032,3415.0,3414.3,0.1968]
[1641489821369,2.00479,3414.7,3414.3,0.1968]
[1641489821568,2.00479,3414.7,3413.9,2.00479]
[1641489821769,0.397182,3414.6,3414.3,12.64]
[1641489821970,0.397182,3414.6,3414.3,12.8368]
[1641489822169,0.397182,3414.6,3414.5,12.64]
[1641489822468,2.00479,3414.7,3414.5,12.8368]
[1641489823069,2.00479,3414.7,3414.5,13.296782]
[1641489823571,1.85831957,3414.6,3414.5,11.48708371]
[1641489823970,1.85831957,3414.6,3414.5,11.94706571]
[1641489824171,1.85831957,3414.8,3414.5,12.34424671]
[1641489824373,1.85831957,3414.8,3414.7,11.48708371]
[1641489824672,1.85831957,3414.8,3414.7,13.34808707]
[1641489825074,1.85831957,3414.8,3414.7,13.80806907]
[1641489825474,1.85831957,3415.4,3414.7,17.81764907]
[1641489825774,1.85831957,3415.4,3415.3,11.48708371]
[1641489825975,1.85831957,3415.4,3415.3,13.02544671]
[1641489826376,1.957e-05,3415.4,3415.3,15.98905268]
[1641489826574,5.10155861,3415.9,3415.3,14.48905268]
[1641489826775,5.10155861,3415.9,3415.5,11.29028371]
[1641489826975,5.10155861,3415.9,3415.7,11.29028371]
[1641489826976,3.09676861,3415.8,3415.7,11.29028371]
[1641489827177,3.09676861,3415.8,3415.7,11.94706571]
[1641489827379,3.40695597,3416.1,3415.8,0.397181]
[1641489827577,3.40695597,3416.1,3416.0,11.48708371]
[1641489827779,3.40695597,3416.1,3416.0,12.18788371]
[1641489828078,3.40695597,3416.1,3416.0,14.50829503]
[1641489828881,2.00479,3416.7,3416.0,13.04504671]
[1641489829379,2.00479,3416.7,3416.6,11.48708371]
[1641489829580,2.00479,3416.7,3416.6,11.94706571]
[1641489829779,2.00479,3416.7,3416.6,11.48708371]
[1641489831079,2.00479,3416.7,3416.6,11.88426471]
[1641489831483,2.00479,3416.7,3416.6,12.34424671]
[1641489831680,3.40695597,3417.1,3416.6,12.34424671]
[1641489831884,3.40695597,3417.1,3417.0,40.1556716]
[1641489832082,3.40695597,3417.1,3417.0,41.3746526]
[1641489832281,2.00479,3417.3,3417.0,41.3746526]
[1641489832282,3.40695597,3417.2,3417.0,41.4374536]
[1641489832483,3.80413797,3417.2,3417.0,40.9774716]
[1641489832984,3.40695597,3417.2,3417.0,40.9774716]
[1641489833383,3.40695597,3417.2,3417.1,11.29028371]
[1641489833782,7.11212797,3417.3,3417.1,8.64204022]
[1641489834183,7.11212797,3417.3,3417.0,29.68718789]
[1641489834384,1.3032,3417.1,3417.0,28.86538789]
[1641489834588,0.397182,3417.1,3417.0,28.86538789]
[1641489834785,1.700382,3417.1,3416.2,2.00479]
[1641489834986,1.700382,3417.1,3415.8,0.73147763]
[1641489834987,1.3032,3416.3,3415.8,0.73147763]
[1641489835185,0.397182,3416.2,3415.9,12.64]
[1641489835385,0.397182,3416.2,3416.1,12.64]
[1641489835585,1.700382,3416.2,3415.8,0.73147763]
[1641489835784,0.397182,3416.2,3415.8,0.73147763]
[1641489836186,0.397182,3416.2,3415.8,12.64]
[1641489836785,0.397182,3416.2,3416.1,12.8368]
[1641489836986,0.397182,3416.2,3416.1,13.099982]
[1641489837385,0.397182,3416.2,3416.1,12.8368]
[1641489837588,0.397182,3416.2,3415.7,2.401971]
[1641489837886,0.397182,3416.2,3415.7,2.00479]
[1641489839091,0.397182,3416.2,3415.7,2.401971]
[1641489839290,0.397182,3416.2,3416.1,0.1968]
[1641489839494,2.389262,3416.5,3416.1,1.502282]
[1641489839694,2.389262,3416.5,3416.2,12.64]
[1641489840293,2.00479,3417.3,3416.4,12.8368]
[1641489840493,2.00479,3417.3,3417.0,12.64]
[1641489840696,0.397182,3417.2,3417.0,0.6527]
[1641489840894,1.3032,3417.1,3417.0,0.6527]
[1641489841396,0.397182,3417.2,3417.0,0.6527]
[1641489841596,0.397182,3417.2,3415.7,2.00479]
[1641489841597,1.3032,3417.1,3415.7,2.00479]
[1641489841895,0.7563,3417.2,3415.7,2.00479]
[1641489842093,1.3032,3416.5,3415.7,2.00479]
[1641489842294,0.397182,3416.4,3415.7,2.00479]
[1641489842599,1.3032,3415.8,3406.1,13.013]
[1641489842796,1.3032,3415.4,3412.9,51.7193]
[1641489842994,1.3032,3415.4,3413.9,12.64]
[1641489843596,3.30799,3415.4,3414.6,14.64479]
[1641489843793,0.397182,3415.3,3414.6,14.84159]
[1641489843997,0.397182,3415.3,3414.6,14.64479]
[1641489844197,0.397182,3415.3,3414.8,12.64]
[1641489844396,0.397182,3415.3,3415.2,0.1968]
[1641489844595,0.397182,3415.3,3415.0,12.64]
[1641489845195,0.397182,3415.3,3414.6,14.64479]
[1641489846199,0.397182,3415.3,3414.6,14.84159]
[1641489846397,0.397182,3415.3,3414.6,14.64479]
[1641489846596,0.397182,3415.3,3414.6,14.84159]
[1641489846998,0.397182,3415.3,3414.6,14.64479]
[1641489847197,0.397182,3415.3,3414.6,14.84159]
[1641489847398,0.397182,3415.3,3414.8,12.64]
[1641489847798,0.397182,3415.3,3414.8,13.3514]
[1641489848798,2.00479,3415.4,3415.3,2.142836]
[1641489850301,3.30799,3415.4,3415.3,2.142836]
[1641489850700,2.00479,3415.4,3415.3,2.142836]
[1641489850900,2.00479,3415.4,3415.3,2.602818]
[1641489851300,2.00479,3415.4,3415.3,15.242818]
[1641489851501,3.30799,3415.4,3415.3,2.142836]